bitfinex/quotes_SOLUSD_20241223
["timestamp","ask_amount","ask_price","bid_price","bid_amount"]
[1734955579673,6.22627599,183.8,183.65,1.6206]
[1734955580604,20.0,183.77,183.65,1.6206]
[1734955581091,6.22627599,183.8,183.65,1.6206]
[1734955581289,8.36222895,183.8,183.65,1.6206]
[1734955582077,23.776884,183.79,183.65,1.6206]
[1734955582599,20.0,183.76,183.65,1.6206]
[1734955586820,20.0,183.77,183.68,1.5026]
[1734955587608,92.5799522,183.9,183.7,8.1648]
[1734955587825,6.22627599,183.87,183.7,8.98096772]
[1734955588907,20.0,183.84,183.7,8.98096772]
[1734955589109,20.0,183.83,183.7,8.98096772]
[1734955592011,20.0,183.83,183.71,23.776884]
[1734955592386,20.0,183.83,183.7,8.98096772]
[1734955592588,20.0,183.79,183.7,8.1648]
[1734955596221,23.776884,183.78,183.7,8.1648]
[1734955596396,20.0,183.75,183.7,8.1648]
[1734955597215,20.0,183.71,183.7,8.1648]
[1734955597898,23.776884,183.74,183.65,8.1159]
[1734955598121,20.0,183.71,183.65,8.1159]
[1734955601802,20.0,183.67,183.65,1.5249]
[1734955601999,20.0,183.67,183.61,7.874]
[1734955602194,23.776884,183.66,183.61,7.874]
[1734955602506,20.0,183.67,183.61,7.874]
[1734955603095,20.0,183.69,183.61,7.874]
[1734955603292,20.0,183.65,183.61,7.874]
[1734955603915,20.0,183.68,183.61,7.874]
[1734955604318,25.91874179,183.71,183.61,7.874]
[1734955605630,20.0,183.68,183.61,7.874]
[1734955608527,20.0,183.64,183.61,7.874]
[1734955608723,20.0,183.6,183.57,6.0559]
[1734955609611,20.0,183.64,183.57,6.0559]
[1734955609810,20.0,183.6,183.57,6.0559]
[1734955610708,20.0,183.63,183.57,6.0559]
[1734955611931,10.34301953,183.7,183.57,6.0559]
[1734955611932,8.82271953,183.7,183.57,6.0559]
[1734955612125,8.41094338,183.7,183.58,0.81682681]
[1734955612713,6.22627599,183.7,183.66,1.6642]
[1734955613031,8.4569522,183.74,183.67,6.6563]
[1734955613333,8.4569522,183.78,183.67,6.6563]
[1734955614322,3.66779824,183.79,183.67,6.6563]
[1734955614519,5.76528601,183.77,183.66,1.6642]
[1734955614721,20.0,183.74,183.66,1.6642]
[1734955614926,20.0,183.73,183.66,1.6642]
[1734955615140,20.0,183.72,183.66,1.6642]
[1734955616158,20.0,183.73,183.66,1.6642]
[1734955616752,20.0,183.72,183.66,1.6642]
[1734955621219,23.776884,183.75,183.66,1.6642]
[1734955622427,20.0,183.72,183.66,1.6642]
[1734955622630,5.81743718,183.78,183.66,1.6642]
[1734955622631,20.0,183.75,183.66,1.6642]
[1734955624343,20.0,183.79,183.67,6.0523]
[1734955624542,20.0,183.77,183.67,6.0523]
[1734955625231,20.0,183.79,183.67,6.0523]
[1734955625450,22.76597133,183.79,183.67,6.0523]
[1734955625659,23.776884,183.78,183.67,6.0523]
[1734955625955,20.0,183.75,183.67,6.0523]
[1734955626663,20.0,183.77,183.67,6.0523]
[1734955627158,20.0,183.79,183.67,6.0523]
[1734955627458,20.0,183.78,183.67,6.0523]
[1734955629654,20.0,183.79,183.67,6.0523]
[1734955629859,22.15686524,183.81,183.67,6.0523]
[1734955630157,20.0,183.81,183.67,6.0523]
[1734955631162,20.0,183.79,183.67,6.0523]
[1734955631456,20.0,183.75,183.67,6.0523]
[1734955632260,20.0,183.77,183.67,6.0523]
[1734955632466,20.0,183.78,183.67,6.0523]
[1734955633664,20.0,183.74,183.67,6.0523]
[1734955635538,20.0,183.7,183.66,1.6642]
[1734955635739,20.0,183.66,183.63,6.6468]
[1734955635955,23.776884,183.69,183.63,6.6468]
[1734955636162,20.0,183.66,183.63,6.6468]
[1734955637064,20.0,183.66,183.62,1.5029]
[1734955637761,20.0,183.62,183.58,1.5029]
[1734955638461,23.776884,183.65,183.58,1.5029]
[1734955643141,20.0,183.66,183.58,1.5029]
[1734955644250,8.87447425,183.69,183.58,1.5029]
[1734955644451,11.01918748,183.69,183.58,1.5029]
[1734955645274,23.776884,183.68,183.58,1.5029]
[1734955645440,20.0,183.65,183.58,1.5029]
[1734955645640,2.76597133,183.72,183.59,6.82406173]
[1734955645866,2.22317239,183.74,183.59,19.66050467]
[1734955646051,8.4569522,183.76,183.59,6.0071]
[1734955646248,3.47193857,183.75,183.59,6.0071]
[1734955646574,6.66711292,183.75,183.59,6.0071]
[1734955647744,13.01189725,183.75,183.59,6.0071]
[1734955647969,13.01189725,183.75,183.59,18.84354294]
[1734955648143,13.01189725,183.75,183.59,6.0071]
[1734955648349,20.0,183.72,183.59,6.0071]
[1734955651183,20.0,183.72,183.6,1.5351]
[1734955652178,20.0,183.72,183.62,1.6657]
[1734955652372,23.776884,183.73,183.62,1.6657]
[1734955652553,20.0,183.7,183.62,1.6657]
[1734955652746,20.0,183.7,183.63,8.2205]
[1734955672894,20.0,183.66,183.63,8.2205]
[1734955673190,20.0,183.66,183.63,1.6657]
[1734955674100,23.776884,183.65,183.59,7.6537]
[1734955678808,20.0,183.62,183.59,7.6537]
[1734955681999,20.0,183.58,183.55,8.0761]
[1734955686393,20.0,183.61,183.55,8.0761]
[1734955686818,23.776884,183.63,183.55,8.0761]
[1734955688120,20.0,183.6,183.55,8.0761]
[1734955694115,20.0,183.56,183.51,6.6407]
[1734955696618,20.0,183.59,183.51,6.6407]
[1734955696922,20.0,183.58,183.51,6.6407]
[1734955699926,20.0,183.54,183.5,1.5274]
[1734955701923,23.776884,183.53,183.5,1.5274]
[1734955702117,23.776884,183.53,183.47,6.6175]
[1734955702626,20.0,183.5,183.47,6.6175]
[1734955702825,20.0,183.5,183.45,1.6499777]
[1734955704125,20.0,183.51,183.45,1.6499777]
[1734955705214,20.0,183.55,183.45,1.6499777]
[1734955708029,23.776884,183.57,183.45,9.86231977]
[1734955708222,13.65751459,183.58,183.45,10.67970428]
[1734955708420,13.65751459,183.58,183.47,6.1473]
[1734955708646,10.61572204,183.63,183.48,1.6311]
[1734955708931,6.66711292,183.62,183.48,9.84344207]
[1734955709431,20.0,183.59,183.48,9.84344207]
[1734955710312,6.66711292,183.62,183.49,31.98922607]
[1734955710515,6.66711292,183.62,183.5,6.0903]
[1734955711235,6.99040167,183.63,183.51,10.65223401]
[1734955711437,4.79073586,183.67,183.52,8.21234207]
[1734955711728,11.78113753,183.67,183.52,8.21234207]
[1734955712118,11.78113753,183.67,183.53,8.21234207]
[1734955712322,11.78113753,183.67,183.55,9.83504207]
[1734955712323,6.99040167,183.67,183.55,9.83504207]
[1734955712512,17.78229915,183.72,183.55,9.83504207]
[1734955712710,17.78229915,183.72,183.56,23.776884]
[1734955712911,17.78229915,183.72,183.56,31.98922607]
[1734955713111,4.97333266,183.71,183.57,7.86]
[1734955713507,4.97333266,183.71,183.57,16.88924576]
[1734955714712,20.0,183.69,183.57,16.88924576]
[1734955715637,4.97333266,183.71,183.59,8.21234207]
[1734955715833,4.79073586,183.78,183.61,1.5779]
[1734955716025,6.34478433,183.77,183.61,1.5779]
[1734955716344,6.34478433,183.77,183.62,6.2099]
[1734955717032,20.0,183.74,183.62,6.2099]
[1734955717739,20.0,183.7,183.62,6.2099]
[1734955719830,20.0,183.74,183.63,23.776884]
[1734955720045,6.34478433,183.77,183.65,25.282984]
[1734955720221,8.4569522,183.79,183.68,1.5061]
[1734955721045,15.44735387,183.82,183.68,1.5061]
[1734955721647,20.0,183.79,183.68,1.5061]
[1734955721849,23.776884,183.81,183.68,1.5061]
[1734955722051,23.776884,183.81,183.68,9.71844207]
[1734955722347,23.776884,183.81,183.68,14.32419641]
[1734955723252,20.0,183.78,183.68,14.32419641]
[1734955723950,20.0,183.78,183.7,1.5451]
[1734955727165,4.79073586,183.84,183.72,14.48049641]
[1734955727465,4.79073586,183.84,183.71,26.397]
[1734955727466,2.12710848,183.89,183.76,1.6624]
[1734955727631,4.79073586,183.9,183.76,1.6624]
[1734955727825,9.76406852,183.9,183.76,1.6624]
[1734955728861,20.0,183.87,183.76,1.6624]
[1734955730749,20.0,183.88,183.77,6.5893]
[1734955730936,0.5501964,183.91,183.79,12.81809641]
[1734955732332,0.5501964,183.91,183.8,0.81581608]
[1734955733443,0.5501964,183.91,183.81,8.2117]
[1734955734533,5.52352906,183.91,183.81,8.2117]
[1734955737992,20.0,183.87,183.81,8.2117]
[1734955741974,6.99040167,183.9,183.81,8.2117]
[1734955742275,20.0,183.89,183.81,8.2117]
[1734955742651,0.5501964,183.91,183.81,8.2117]
[1734955744164,20.5501964,183.91,183.81,8.2117]
[1734955751974,20.5501964,183.91,183.82,23.776884]
[1734955752176,0.5501964,183.91,183.85,1.6215]
[1734955752358,0.5501964,183.91,183.86,6.147]
[1734955754590,0.5501964,183.91,183.88,1.6215]
[1734955754962,12.99156329,184.06,183.89,6.3292]
[1734955755858,12.99156329,184.06,183.9,1.5908]
[1734955756575,12.99156329,184.06,183.91,31.97110039]
[1734955756754,8.50108468,184.07,183.91,31.97110039]
[1734955757079,6.91998468,184.07,183.92,7.6006]
[1734955757454,2.12924882,184.07,183.92,144.3006]
[1734955757660,13.67293739,184.1,183.92,144.3006]
[1734955757856,13.67293739,184.1,183.92,152.49481639]
[1734955758090,13.67293739,184.1,183.93,31.97110039]
[1734955758478,15.85641639,184.1,183.93,23.776884]
[1734955759465,20.0,184.07,183.93,31.97110039]
[1734955759891,20.0,184.03,183.93,31.97110039]
[1734955760063,20.0,184.03,183.93,23.776884]
[1734955760378,20.0,184.02,183.92,7.6006]
[1734955761173,20.0,184.03,183.92,7.6006]
[1734955761355,20.0,183.99,183.92,7.6006]
[1734955761779,24.96984945,183.99,183.92,7.6006]
[1734955762381,20.0,183.99,183.92,7.6006]
[1734955763877,2.14134854,184.02,183.92,7.6006]
[1734955764061,20.0,184.07,183.92,7.6006]
[1734955765161,23.776884,184.06,183.92,7.6006]
[1734955765364,20.0,184.03,183.92,7.6006]
[1734955767181,23.776884,184.06,183.92,20.38752432]
[1734955767364,23.776884,184.06,183.92,7.6006]
[1734955768592,20.0,184.03,183.92,7.6006]
[1734955768891,20.0,184.02,183.92,7.6006]
[1734955769389,20.0,183.98,183.92,7.6006]
[1734955769603,20.0,183.94,183.92,7.6006]
[1734955769903,23.776884,183.93,183.88,8.0187]
[1734955770106,20.0,183.9,183.88,8.0187]
[1734955770575,20.0,183.9,183.88,1.6605]
[1734955771788,20.0,183.91,183.88,1.6605]
[1734955772181,20.0,183.94,183.88,1.6605]
[1734955772900,20.0,183.99,183.88,1.6605]
[1734955773399,20.0,183.97,183.88,1.6605]
[1734955773573,20.0,183.95,183.88,1.6605]
[1734955777807,23.776884,183.94,183.88,1.6605]
[1734955778099,30.3783329,183.94,183.88,1.6605]
[1734955781584,20.0,183.91,183.84,6.0093]
[1734955781774,20.0,183.87,183.84,6.0093]
[1734955781980,23.776884,183.86,183.83,1.5487]
[1734955782595,23.776884,183.86,183.8,6.2476]
[1734955782789,20.0,183.87,183.8,6.2476]
[1734955791509,23.776884,183.86,183.8,6.2476]
[1734955791702,20.0,183.83,183.8,6.2476]
[1734955792296,20.0,183.84,183.8,6.2476]
[1734955794787,20.0,183.87,183.8,6.2476]
[1734955800415,20.0,183.83,183.78,1.5842]
[1734955800995,23.776884,183.82,183.76,6.3982]
[1734955801393,20.0,183.79,183.76,6.3982]
[1734955801908,20.0,183.79,183.73,1.5825]
[1734955805722,20.0,183.84,183.73,1.5825]
[1734955806710,7.47744927,183.87,183.73,14.36942432]
[1734955806899,0.94472116,183.91,183.76,20.94582432]
[1734955807103,3.8460147,183.93,183.79,12.78692432]
[1734955807417,1.5497,183.95,183.8,7.7551]
[1734955807626,5.62342833,183.95,183.8,7.7551]
[1734955807920,6.55472112,183.94,183.8,7.7551]
[1734955808618,20.0,183.83,183.8,7.7551]
[1734955809218,20.0,183.86,183.8,7.7551]
[1734955809946,20.0,183.9,183.8,7.7551]
[1734955810998,1.6633,183.89,183.75,8.0725]
[1734955811342,23.776884,183.81,183.75,8.0725]
[1734955811504,20.0,183.78,183.75,8.0725]
[1734955812310,20.0,183.78,183.66,7.9891]
[1734955812619,20.0,183.74,183.66,7.9891]
[1734955815928,23.776884,183.73,183.66,7.9891]
[1734955816228,20.0,183.7,183.66,1.5809]
[1734955818640,20.0,183.66,183.62,8.0212]
[1734955820332,23.776884,183.65,183.58,1.5744]
[1734955820637,20.0,183.66,183.58,1.5744]
[1734955821015,23.776884,183.65,183.58,1.5744]
[1734955821636,20.0,183.62,183.58,1.5744]
[1734955823440,20.0,183.69,183.58,1.5744]
[1734955823641,23.776884,183.68,183.58,1.5744]
[1734955823826,20.0,183.65,183.58,1.5744]
[1734955827439,20.0,183.69,183.59,12.78692432]
[1734955827635,20.0,183.72,183.59,12.78692432]
[1734955827826,90.97849618,183.76,183.59,12.78692432]
[1734955828050,3.69534076,183.76,183.63,18.96632432]
[1734955828228,1.5545,183.77,183.64,1.5258]
[1734955829044,6.55472112,183.79,183.65,12.78692432]
[1734955830647,20.0,183.76,183.65,12.78692432]
[1734955830831,20.0,183.76,183.64,14.31272432]
[1734955831657,20.0,183.76,183.65,12.78692432]
[1734955838852,20.0,183.76,183.67,6.3345]
[1734955839055,20.0,183.76,183.68,1.5474]
[1734955840858,20.0,183.78,183.68,1.5474]
[1734955841270,22.11861489,183.81,183.68,1.5474]
[1734955841432,23.776884,183.8,183.68,1.5474]
[1734955841762,20.0,183.77,183.68,1.5474]
[1734955843147,20.0,183.81,183.68,15.15072935]
[1734955844157,20.0,183.8,183.68,14.33432432]
[1734955844365,20.0,183.8,183.68,1.5474]
[1734955844565,23.776884,183.79,183.68,1.5474]
[1734955850769,20.0,183.76,183.68,1.5474]
[1734955851268,23.776884,183.79,183.68,1.5474]
[1734955851454,20.0,183.76,183.68,1.5474]
[1734955852258,23.776884,183.75,183.68,1.5474]
[1734955852651,20.0,183.72,183.68,1.5474]
[1734955852867,20.0,183.72,183.67,6.3345]
[1734955854369,20.0,183.72,183.64,8.1118]
[1734955860379,23.776884,183.71,183.64,8.1118]
[1734955862849,20.0,183.68,183.64,8.1118]
[1734955863177,20.0,183.68,183.6,8.1397]
[1734955863381,20.0,183.64,183.6,8.1397]
[1734955863563,20.0,183.64,183.56,8.251]
[1734955863759,20.0,183.6,183.56,8.251]
[1734955864472,20.0,183.56,183.52,6.0937]
[1734955864871,23.776884,183.55,183.52,6.0937]
[1734955865756,20.0,183.52,183.48,6.5123]
[1734955866176,20.0,183.52,183.46,1.6367]
[1734955866476,23.776884,183.51,183.45,0.6813741]
[1734955866666,20.0,183.48,183.45,0.6813741]
[1734955871185,1.5238,183.57,183.45,0.6813741]
[1734955872182,23.776884,183.56,183.45,0.6813741]
[1734955872379,1.28431557,183.58,183.45,0.6813741]
[1734955872579,3.46713166,183.58,183.45,0.6813741]
[1734955872959,7.31812975,183.58,183.45,0.6813741]
[1734955873166,20.0,183.55,183.45,0.6813741]
[1734955873377,7.31812975,183.58,183.45,0.6813741]
[1734955874690,20.0,183.55,183.46,6.438]
[1734955874893,23.776884,183.54,183.46,6.438]
[1734955875074,20.0,183.55,183.46,6.438]
[1734955875277,4.96868882,183.6,183.47,14.36803507]
[1734955875468,12.94190825,183.65,183.49,36.60541907]
[1734955875797,12.94190825,183.65,183.5,6.438]
[1734955876304,5.40901321,183.64,183.5,6.438]
[1734955876462,6.38718713,183.63,183.5,6.438]
[1734955876664,6.55472112,183.62,183.5,6.438]
[1734955876887,20.0,183.58,183.5,6.438]
[1734955877760,20.0,183.54,183.5,6.438]
[1734955878384,23.776884,183.53,183.47,1.5395]
[1734955878582,20.0,183.5,183.47,1.5395]
[1734955879293,20.0,183.46,183.45,7.0768741]
[1734955879497,20.0,183.46,183.45,0.6813741]
[1734955880616,43.776884,183.46,183.45,0.6813741]
[1734955883577,20.0,183.46,183.45,0.6813741]
[1734955883993,43.776884,183.46,183.45,0.6813741]
[1734955885101,20.0,183.46,183.45,0.6813741]
[1734955888699,20.0,183.46,183.45,5.6813741]
[1734955893597,6.38718713,183.54,183.45,5.6813741]
[1734955895206,20.0,183.5,183.45,5.6813741]
[1734955897626,23.776884,183.49,183.45,5.6813741]
[1734955897907,43.776884,183.46,183.45,2.72566761]
[1734955898722,20.0,183.42,183.36,6.131]
[1734955899009,20.0,183.38,183.34,11.5069]
[1734955900023,20.0,183.35,183.34,10.0]
[1734955900314,43.776884,183.35,183.34,10.0]
[1734955900815,20.0,183.31,183.27,0.6813741]
[1734955901411,43.776884,183.28,183.27,0.6813741]
[1734955901886,20.0,183.28,183.27,0.6813741]
[1734955902206,20.0,183.3,183.27,0.6813741]
[1734955904606,13.85894968,183.37,183.17,3.03388275]
[1734955904607,20.0,183.26,183.17,2.21527374]
[1734955904818,23.776884,183.25,183.17,2.21527374]
[1734955905986,20.0,183.2,183.13,10.0]
[1734955906184,20.0,183.16,183.09,0.6813741]
[1734955906495,20.0,183.12,183.03,1.6609]
[1734955906700,20.0,183.15,183.05,12.87795518]
[1734955906895,20.0,183.15,183.04,12.87795518]
[1734955907212,20.0,183.15,182.92,29.47873507]
[1734955907213,20.0,183.15,182.93,138.3077]
[1734955907414,20.0,183.09,182.96,12.87795518]
[1734955908311,23.776884,183.08,182.96,12.87795518]
[1734955908503,20.0,183.12,182.96,12.87795518]
[1734955908815,20.0,183.08,182.96,12.37795518]
[1734955909497,20.0,183.08,182.97,6.2243]
[1734955910814,23.776884,183.07,182.97,6.2243]
[1734955911016,20.0,183.12,183.0,20.0]
[1734955911217,12.17454062,183.15,183.01,20.0]
[1734955912535,4.67681013,183.23,183.04,12.87795518]
[1734955912703,5.48121184,183.21,183.04,12.87795518]
[1734955913022,5.48121184,183.21,183.03,14.41965518]
[1734955913200,5.48121184,183.21,183.03,1.5417]
[1734955914146,23.776884,183.16,183.03,1.5417]
[1734955914296,20.0,183.13,183.03,1.5417]
[1734955914710,20.0,183.13,183.04,20.0]
[1734955915509,20.0,183.13,183.03,35.23888643]
[1734955915932,20.0,183.13,183.04,20.0]
[1734955916227,20.0,183.13,183.03,1.5417]
[1734955916402,20.0,183.09,183.03,1.5417]
[1734955916944,20.0,183.09,183.0,1.5674]
[1734955917730,23.776884,183.08,183.0,1.5674]
[1734955917935,23.776884,183.08,182.97,6.2243]
[1734955920346,20.0,183.05,182.94,1.5674]
[1734955920514,23.776884,183.04,182.94,1.5674]
[1734955921435,20.0,183.01,182.94,1.5674]
[1734955923436,20.0,183.08,182.94,1.5674]
[1734955923636,20.0,183.04,182.94,1.5674]
[1734955923844,20.0,183.04,182.95,0.81958531]
[1734955924347,4.70871168,183.09,182.94,1.5674]
[1734955925256,23.776884,183.08,182.94,1.5674]
[1734955925438,20.0,183.05,182.94,14.44535518]
[1734955925951,20.0,183.05,182.94,15.26496343]
[1734955926827,20.0,183.05,182.94,1.5674]
[1734955928841,20.0,183.01,182.94,1.5674]
[1734955931752,20.0,182.95,182.9,0.6813741]
[1734955931930,20.0,182.96,182.9,0.6813741]
[1734955932134,20.0,182.99,182.9,0.6813741]
[1734955932848,23.776884,183.01,182.9,0.6813741]
[1734955933347,23.776884,183.01,182.9,2.2609741]
[1734955933549,6.40985505,183.02,182.91,23.776884]
[1734955933747,0.79482529,183.03,182.92,6.5694]
[1734955934855,15.79694631,183.06,182.93,36.65483918]
[1734955935056,15.79694631,183.06,182.94,0.81955317]
[1734955935234,15.79694631,183.06,182.94,13.69750835]
[1734955936465,20.0,183.03,182.92,6.5694]
[1734955936868,20.0,183.02,182.92,6.5694]
[1734955937047,7.9960305,183.05,182.92,20.26711053]
[1734955937253,20.0,183.03,182.94,12.87795518]
[1734955937445,20.0,183.03,182.94,13.69752179]
[1734955937645,15.79694631,183.06,182.94,13.69752179]
[1734955938063,15.79694631,183.06,182.96,20.0]
[1734955938266,15.79694631,183.06,182.95,12.87795518]
[1734955938561,7.9960305,183.1,182.95,12.87795518]
[1734955938766,23.776884,183.09,182.94,13.69752179]
[1734955939142,20.0,183.06,182.94,13.69752179]
[1734955939451,20.0,183.06,182.95,12.87795518]
[1734955939646,20.0,183.06,182.94,13.69752179]
[1734955940869,20.0,183.02,182.92,6.5694]
[1734955941043,23.776884,183.01,182.92,6.5694]
[1734955941242,20.0,182.98,182.92,6.5694]
[1734955942071,20.0,183.03,182.92,6.5694]
[1734955942366,23.776884,183.02,182.92,6.5694]
[1734955947279,20.0,183.03,182.92,6.5694]
[1734955949474,20.0,183.03,182.9,2.2609741]
[1734955949475,23.776884,183.02,182.9,2.2609741]
[1734955951253,20.0,182.99,182.9,2.2609741]
[1734955952251,20.0,183.03,182.91,12.87795518]
[1734955952452,20.0,183.01,182.91,12.87795518]
[1734955953062,20.0,183.03,182.91,12.87795518]
[1734955955177,20.0,183.03,182.9,2.2609741]
[1734955955561,20.0,183.01,182.9,2.2609741]
[1734955956478,7.20581489,183.04,182.91,150.39790292]
[1734955956681,7.20581489,183.11,182.95,12.87795518]
[1734955956983,1.6606,183.13,182.96,14.48245518]
[1734955957165,8.77086398,183.12,182.96,14.48245518]
[1734955957359,9.56568927,183.12,182.96,14.48245518]
[1734955958079,8.77086398,183.12,182.96,14.48245518]
[1734955958285,0.79482529,183.11,182.96,14.48245518]
[1734955958659,20.0,183.09,182.96,14.48245518]
[1734955960978,0.79482529,183.11,182.97,167.018384]
[1734955961184,8.00064018,183.17,183.02,12.87795518]
[1734955961387,6.0093,183.19,183.04,6.6157]
[1734955961998,7.71175129,183.17,183.04,6.6157]
[1734955962361,20.0,183.14,183.04,6.6157]
[1734955963188,20.0,183.14,183.01,1.6116]
[1734955964890,23.776884,183.13,183.01,1.6116]
[1734955966560,20.0,183.12,183.01,1.6116]
[1734955968004,23.776884,183.15,183.01,1.6116]
[1734955968805,4.3274428,183.16,183.01,1.6116]
[1734955969015,24.3274428,183.16,183.01,1.6116]
[1734955969686,43.776884,183.15,183.01,1.6116]
[1734955972908,43.776884,183.15,182.99,6.6157]
[1734955973206,23.776884,183.09,182.97,1.5473]
[1734955973382,23.776884,183.05,182.97,1.5473]
[1734955973584,20.0,183.02,182.97,1.5473]
[1734955973801,20.0,183.02,182.95,6.1878]
[1734955973987,20.0,183.02,182.92,1.5473]
[1734955974398,23.776884,183.0,182.92,1.5473]
[1734955974990,20.0,182.97,182.92,1.5473]
[1734955975191,20.0,182.97,182.9,0.6813741]
[1734955977009,20.0,183.01,182.9,0.6813741]
[1734955977594,7.49302835,183.04,182.9,1.50118879]
[1734955978104,7.49302835,183.04,182.9,0.6813741]
[1734955978494,7.49302835,183.04,182.9,13.55932928]
[1734955978786,7.49302835,183.04,182.9,0.6813741]
[1734955979018,20.0,183.01,182.9,0.6813741]
[1734955979520,20.0,183.01,182.9,13.55932928]
[1734955980307,7.49302835,183.04,182.92,1.5954]
[1734955980493,20.0,183.06,182.92,21.13295518]
[1734955980807,20.0,183.06,182.92,8.255]
[1734955981315,20.0,183.06,182.92,21.13295518]
[1734955981526,20.0,183.06,182.93,37.47448205]
[1734955981738,20.0,183.06,182.94,12.87795518]
[1734955982016,20.0,183.06,182.95,0.81953596]
[1734955982224,15.34434217,183.09,182.95,0.81953596]
[1734955982522,8.35620773,183.15,182.95,0.81953596]
[1734955982703,5.8115945,183.13,182.95,0.81953596]
[1734955983212,4.3274428,183.13,182.95,0.81953596]
[1734955983422,20.0,183.1,182.95,13.69749114]
[1734955983599,23.776884,183.11,182.95,13.69749114]
[1734955984121,1.4841517,183.12,182.96,20.54755518]
[1734955984426,1.4841517,183.12,182.97,0.8194106]
[1734955984708,1.4841517,183.12,182.97,13.69736578]
[1734955984912,1.4841517,183.12,182.97,0.8194106]
[1734955985315,7.58763946,183.12,182.96,144.3696]
[1734955985508,20.0,183.09,182.96,7.6696]
[1734955985700,7.58763946,183.12,182.97,13.6974109]
[1734955986019,7.58763946,183.12,182.96,144.3696]
[1734955986209,23.776884,183.11,182.96,144.3696]
[1734955987115,20.0,183.08,182.96,144.3696]
[1734955987936,20.0,183.08,182.96,7.6696]
[1734955988121,20.0,183.04,182.96,7.6696]
[1734955988289,7.58763946,183.12,182.97,0.81959478]
[1734955988496,20.0,183.09,182.97,13.69754996]
[1734955988692,20.0,183.09,182.97,150.39754996]
[1734955988892,20.0,183.09,182.97,149.57795518]
[1734955989113,20.0,183.13,182.97,149.57795518]
[1734955990254,20.0,183.13,182.98,0.81938811]
[1734955993830,20.0,183.13,183.0,1.5973]
[1734955994027,20.0,183.13,183.01,142.9416]
[1734955994241,20.0,183.13,183.02,0.81920625]
[1734955994534,7.61768107,183.16,183.02,0.81920625]
[1734955994829,7.61768107,183.16,183.03,1.5185]
[1734955995842,20.0,183.13,183.03,1.5185]
[1734956001131,20.0,183.13,183.01,6.2416]
[1734956001319,20.0,183.09,183.01,6.2416]
[1734956001914,27.61768107,183.09,183.01,6.2416]
[1734956002236,23.776884,183.08,183.01,6.2416]
[1734956002418,27.61768107,183.09,183.01,6.2416]
[1734956003918,7.61768107,183.09,183.01,6.2416]
[1734956011947,20.0,183.09,183.01,6.2416]
[1734956012746,7.61768107,183.13,183.01,6.2416]
[1734956013244,7.61768107,183.13,183.02,1.5229]
[1734956013435,6.90982777,183.17,183.03,0.81922631]
[1734956013652,7.61768107,183.18,183.04,1.5229]
[1734956013836,7.61768107,183.17,183.04,1.5229]
[1734956014947,20.0,183.14,183.04,1.5229]
[1734956016536,20.0,183.14,183.04,2.3421081]
[1734956016851,20.0,183.14,183.04,1.5229]
[1734956018250,7.61768107,183.17,183.05,23.776884]
[1734956018548,20.0,183.14,183.05,23.776884]
[1734956019050,7.61768107,183.17,183.05,32.0429526]
[1734956019229,20.0,183.18,183.07,8.2660686]
[1734956019429,2.20648398,183.21,183.08,7.7511]
[1734956019625,7.61768107,183.22,183.08,7.7511]
[1734956020542,20.0,183.19,183.09,23.776884]
[1734956021773,20.0,183.19,183.08,7.7511]
[1734956021933,20.0,183.17,183.08,7.7511]
[1734956024858,6.1069629,183.2,183.08,7.7511]
[1734956026154,20.0,183.16,183.08,7.7511]